bitfinex/quotes_ETHUSD_20260228
["timestamp","ask_amount","ask_price","bid_price","bid_amount"]
[1772268732344,1e-08,1853.7,1853.2,6.26790029]
[1772268732506,1e-08,1853.7,1853.2,2.22101791]
[1772268733247,1e-08,1853.7,1853.0,1.93137964]
[1772268733600,1.91725075,1854.7,1853.7,1.93137964]
[1772268733737,1.91725075,1854.7,1853.8,1.702]
[1772268734437,1.91725075,1854.5,1853.8,1.702]
[1772268734816,1.91725075,1854.5,1853.6,1.3487268]
[1772268735720,1.91725075,1854.3,1853.6,1.3487268]
[1772268736035,1.91725075,1854.3,1853.4,5.39547179]
[1772268736455,1.91725075,1854.3,1853.3,1.701]
[1772268736631,1.91725075,1854.3,1853.4,1.34887234]
[1772268737855,1.91725075,1854.1,1853.4,1.34887234]
[1772268739158,1.91725075,1854.1,1853.3,3.04989245]
[1772268739663,1.91725075,1854.0,1853.3,3.04989245]
[1772268740960,1.91725075,1854.3,1853.5,1.93137964]
[1772268741260,1.97106352,1854.7,1853.9,1.93137964]
[1772268741459,1.97106352,1854.7,1854.0,1.7]
[1772268741763,1.91725075,1854.5,1853.9,1.34846445]
[1772268741960,0.498496,1854.0,1853.9,1.34846445]
[1772268742161,0.41220977,1854.0,1853.7,5.39448649]
[1772268742361,0.41220977,1854.0,1853.7,1.34865404]
[1772268746051,0.05381277,1854.2,1853.7,1.34865404]
[1772268746664,3.31936227,1854.2,1853.7,1.34865404]
[1772268746833,1.91725075,1854.1,1853.7,1.34865404]
[1772268747268,0.05381277,1854.3,1853.7,1.34865404]
[1772268747440,1.97106352,1854.3,1853.7,1.34865404]
[1772268748451,1.97106352,1854.3,1853.5,0.0011]
[1772268748639,1.91725075,1854.2,1853.5,0.0011]
[1772268748969,1.97106352,1854.1,1853.5,0.0011]
[1772268750564,1.91725075,1854.0,1853.5,0.0011]
[1772268751941,1.97106352,1854.0,1853.5,0.0011]
[1772268752140,0.05381277,1854.3,1853.5,1.93247964]
[1772268752388,0.05381277,1854.4,1853.5,1.93247964]
[1772268752687,0.05381277,1854.4,1853.6,1.3487268]
[1772268752688,7.10807318,1854.4,1853.6,1.3487268]
[1772268752901,7.10807318,1854.4,1853.7,1.702]
[1772268752902,1.97106352,1854.4,1853.7,1.702]
[1772268753069,1.91725075,1854.4,1853.7,1.702]
[1772268753460,1.40189072,1854.5,1853.7,1.702]
[1772268753461,1.91725075,1854.3,1853.7,1.702]
[1772268753980,0.05381277,1854.2,1853.7,1.702]
[1772268754184,1.91725075,1854.3,1853.7,1.702]
[1772268754386,0.05381277,1854.2,1853.7,1.702]
[1772268754684,1.91725075,1854.3,1853.8,1.34858129]
[1772268755079,1.91725075,1854.3,1853.5,1.34984962]
[1772268755080,1.91725075,1854.1,1853.5,1.34984962]
[1772268755392,0.05381277,1854.0,1853.5,1.34984962]
[1772268755786,0.05381277,1854.0,1853.5,1.34989497]
[1772268756289,1.97106352,1854.0,1853.5,1.34989497]
[1772268756657,1.97106352,1854.0,1853.5,0.0011]
[1772268757282,1.91825075,1854.3,1853.6,1.702]
[1772268757680,1.97206352,1854.3,1853.6,1.702]
[1772268757987,0.05481277,1854.3,1853.6,3.63337964]
[1772268758297,0.001,1854.3,1853.6,3.63337964]
[1772268758479,1.91725075,1854.2,1853.6,1.702]
[1772268758796,1.91725075,1854.2,1853.5,0.0011]
[1772268758797,1.91725075,1854.0,1853.5,0.0011]
[1772268758959,1.91725075,1853.7,1853.2,1.35011716]
[1772268759158,1.91725075,1853.7,1853.2,0.0011]
[1772268759362,1.91725075,1853.7,1853.2,1.35011512]
[1772268760099,1.97106352,1853.9,1853.2,1.35011512]
[1772268760590,3.45372165,1854.2,1853.2,5.0432076]
[1772268760788,0.05381277,1854.1,1853.2,5.0432076]
[1772268760996,0.05381277,1854.1,1853.3,1.99209248]
[1772268761179,0.001,1854.3,1853.3,1.99209248]
[1772268761180,2.10536677,1854.2,1853.3,1.99209248]
[1772268761501,2.15917954,1854.1,1853.2,3.05111512]
[1772268762866,1.34843581,1854.0,1853.2,3.05111512]
[1772268763070,0.05381277,1853.9,1853.2,3.05111512]
[1772268763292,0.05381277,1854.0,1853.3,2.01116379]
[1772268763497,2.06709211,1854.0,1853.2,3.05111512]
[1772268764790,3.36178788,1853.9,1853.2,2.95111512]
[1772268764988,0.05381277,1853.8,1853.2,2.95111512]
[1772268765377,2.06709211,1853.8,1853.2,2.95111512]
[1772268765700,2.06709211,1853.8,1853.2,3.05000751]
[1772268765901,2.06709211,1853.8,1853.2,1.701]
[1772268766109,2.06709211,1853.8,1852.9,1.3491803]
[1772268766673,2.06709211,1853.8,1852.8,3.35281186]
[1772268766872,2.01327934,1853.6,1852.8,2.00351407]
[1772268767073,2.01327934,1853.4,1852.8,3.3528206]
[1772268767387,2.01327934,1853.4,1852.8,0.30351407]
[1772268767706,2.01327934,1853.4,1853.2,0.0011]
[1772268769293,3.36216243,1853.4,1853.2,0.0011]
[1772268769498,2.01327934,1853.4,1853.2,0.0011]
[1772268769702,2.01327934,1853.6,1853.2,0.0011]
[1772268769892,2.06709211,1853.5,1853.2,0.0011]
[1772268770898,3.41592116,1853.5,1853.2,0.0011]
[1772268771897,2.01327934,1853.4,1853.2,0.0011]
[1772268772201,2.06709211,1853.4,1853.2,0.0011]
[1772268773004,2.01327934,1853.3,1853.0,0.0011]
[1772268773988,0.05381277,1853.2,1853.0,0.0011]
[1772268774992,2.01327934,1853.2,1853.0,0.0011]
[1772268775630,3.36231017,1853.2,1853.0,0.0011]
[1772268775816,2.01327934,1853.2,1853.0,0.0011]
[1772268776014,3.36231407,1853.2,1853.0,0.0011]
[1772268776390,2.01327934,1853.2,1853.0,0.0011]
[1772268776586,0.05381277,1853.4,1853.0,0.0011]
[1772268778520,0.05381277,1853.7,1853.0,2.01226379]
[1772268778838,0.05381277,1853.9,1853.1,2.01116379]
[1772268779294,0.05381277,1853.9,1853.2,3.3601817]
[1772268779688,0.001,1853.3,1853.2,3.3601817]
[1772268779998,0.05381277,1853.9,1853.2,3.3601817]
[1772268781020,3.41561309,1853.9,1853.2,3.3601817]
[1772268781322,0.05381277,1854.0,1853.4,5.8000154]
[1772268781525,2.06709211,1854.2,1853.5,2.01116379]
[1772268782801,3.41538501,1854.2,1853.5,2.01116379]
[1772268783629,3.41538501,1854.2,1853.6,1.3487268]
[1772268784824,0.05481277,1854.3,1853.7,2.01116379]
[1772268785295,1.40303497,1854.3,1853.7,2.01116379]
[1772268785499,0.05481277,1854.3,1853.8,1.34858129]
[1772268785698,1.40303216,1854.3,1853.8,1.34858129]
[1772268785900,0.05481277,1854.3,1853.8,1.34858129]
[1772268786223,1.40304398,1854.3,1853.8,1.34858129]
[1772268787525,1.40304398,1854.3,1853.7,3.35977017]
[1772268787827,2.06809211,1854.3,1853.7,1.34860638]
[1772268788130,0.001,1854.3,1853.9,2.01116379]
[1772268788319,0.001,1854.6,1854.1,2.01116379]
[1772268789529,2.01327934,1854.2,1853.5,2.01116379]
[1772268789731,0.05381277,1854.1,1853.5,3.35995631]
[1772268791120,2.06709211,1854.2,1853.5,3.35995631]
[1772268791627,3.41544763,1854.2,1853.5,3.35995631]
[1772268792012,0.05381277,1854.2,1853.7,2.03606034]
[1772268792334,0.001,1854.1,1853.5,3.38485286]
[1772268793902,0.001,1854.1,1853.6,2.03606034]
[1772268795934,0.001,1854.1,1853.7,3.38471438]
[1772268796510,0.001,1854.1,1853.8,3.73106034]
[1772268796724,1.93572409,1854.6,1853.9,2.03606034]
[1772268796725,0.05481277,1854.6,1853.9,2.03606034]
[1772268797308,1.40281585,1854.6,1853.9,2.03606034]
[1772268798541,1.40281585,1854.6,1854.0,1.34843581]
[1772268799024,0.05481277,1854.6,1854.0,3.38449615]
[1772268799421,0.001,1854.6,1854.0,3.38449615]
[1772268799624,1.40281957,1854.6,1854.0,3.38449615]
[1772268800545,1.40281308,1854.6,1854.0,3.38449615]
[1772268801050,0.05481277,1854.6,1854.0,3.38449615]
[1772268801344,0.001,1854.6,1854.1,2.03606034]
[1772268802025,0.05381277,1854.8,1854.2,2.03606034]
[1772268802248,0.05381277,1854.7,1854.2,2.03606034]
[1772268802443,0.05381277,1854.9,1854.2,2.03606034]
[1772268802763,0.05381277,1854.9,1854.1,1.695]
[1772268802764,1.93472409,1854.8,1854.1,3.04332068]
[1772268803048,0.05381277,1854.7,1854.1,3.04332068]
[1772268804522,0.05381277,1854.7,1854.1,5.07941728]
[1772268805742,0.05381277,1854.7,1854.1,3.04335694]
[1772268805932,0.05381277,1854.7,1854.1,5.07941728]
[1772268806646,0.001,1854.5,1854.2,2.03606034]
[1772268808624,0.001,1854.5,1854.3,1.34821765]
[1772268808829,0.05381277,1854.8,1854.3,3.38427799]
[1772268809027,0.05381277,1854.9,1854.3,3.38427799]
[1772268809644,1.98953686,1855.0,1854.3,3.38427799]
[1772268809866,0.001,1855.0,1854.4,2.03606034]
[1772268810063,0.001,1855.0,1854.5,3.73206034]
[1772268810628,0.001,1855.0,1854.6,1.34799956]
[1772268811853,0.001,1855.0,1854.7,2.03606034]
[1772268812760,0.001,1855.0,1854.8,1.34785421]
[1772268813326,0.001,1855.0,1854.5,3.73206034]
[1772268813634,1.98953686,1855.0,1854.5,3.04406957]
[1772268814039,1.93572409,1855.0,1854.5,3.04406957]
[1772268814364,0.001,1855.0,1854.6,2.03606034]
[1772268814836,0.001,1855.0,1854.7,1.34792688]
[1772268815033,0.001,1855.0,1854.5,3.04402803]
[1772268815034,0.05481277,1855.0,1854.5,3.04402803]
[1772268815237,0.001,1855.0,1854.6,2.03606034]
[1772268815564,0.001,1855.0,1854.1,3.38435509]
[1772268815565,1.93472409,1854.9,1854.1,3.38435509]
[1772268815856,0.05381277,1854.8,1854.1,3.38435509]
[1772268817226,1.40167966,1854.8,1854.1,3.38435509]
[1772268817430,1.93472409,1854.7,1854.1,3.38441547]
[1772268817849,0.05381277,1854.8,1854.2,2.03606034]
[1772268818156,0.001,1855.0,1854.4,2.03606034]
[1772268818361,0.001,1855.0,1854.5,3.73606034]
[1772268819032,0.05481277,1855.0,1854.5,3.73606034]
[1772268819233,0.05481277,1855.0,1854.6,1.34799956]
[1772268819460,0.001,1855.0,1854.6,1.34799956]
[1772268819668,0.001,1855.0,1854.6,3.3840599]
[1772268821144,0.001,1855.0,1854.6,3.3851599]
[1772268821446,0.001,1854.9,1854.6,3.3851599]
[1772268823164,1.98326028,1854.9,1854.5,0.0011]
[1772268823366,0.001,1854.9,1854.5,1.99910604]
[1772268823543,0.001,1854.9,1854.6,3.70200604]
[1772268824140,0.001,1854.9,1854.7,1.99800604]
[1772268824338,0.001,1855.1,1854.7,1.99800604]
[1772268825449,0.001,1855.1,1854.9,1.99800604]
[1772268825648,0.001,1855.1,1855.0,1.706]
[1772268827673,0.001,1855.1,1855.0,5.05171493]
[1772268828170,0.40299815,1855.6,1855.1,1.99800604]
[1772268828372,0.40299815,1855.6,1855.2,1.99800604]
[1772268828544,0.001,1856.0,1855.4,1.99800604]
[1772268828745,0.001,1856.0,1855.5,1.99800604]
[1772268828970,0.001,1856.0,1855.6,3.70700604]
[1772268829173,0.001,1856.0,1855.7,1.99800604]
[1772268829670,0.001,1856.0,1855.8,1.34712792]
[1772268830261,3.32884447,1856.6,1855.9,3.70600604]
[1772268830581,1.98226028,1856.5,1855.9,1.708]
[1772268831272,0.05381277,1856.4,1855.9,1.708]
[1772268831474,2.03607305,1856.4,1855.9,1.708]
[1772268831775,3.38281383,1856.4,1855.9,1.708]
[1772268832848,3.38281383,1856.4,1855.9,3.05503776]
[1772268833169,3.38281383,1856.4,1855.9,1.708]
[1772268835173,1.40155355,1856.4,1855.9,3.05504488]
[1772268836259,1.40155355,1856.4,1856.0,1.99800604]
[1772268836260,0.001,1856.4,1856.0,1.99800604]
[1772268837473,3.32997931,1856.4,1855.9,3.05505043]
[1772268837774,0.001,1856.4,1856.0,1.99800604]
[1772268838152,0.001,1856.4,1856.1,1.34691018]
[1772268838345,0.001,1856.4,1856.1,3.34491622]
[1772268839677,0.001,1856.4,1855.9,1.708]
[1772268839850,1.98326028,1856.4,1855.9,1.708]
[1772268840277,0.001,1856.4,1855.9,5.05305999]
[1772268841545,1.98326028,1856.4,1855.9,1.708]
[1772268841745,2.03607305,1856.3,1855.9,1.708]
[1772268841974,1.98226028,1856.3,1855.9,1.708]
[1772268842473,0.05481277,1856.4,1855.9,3.05504842]
[1772268842676,1.40150753,1856.4,1855.9,3.05504842]
[1772268842878,0.05481277,1856.4,1855.9,5.05305446]
[1772268843052,0.001,1856.4,1856.0,1.99800604]
[1772268843556,0.001,1856.4,1855.9,3.05504842]
[1772268843777,1.98326028,1856.4,1855.9,3.05504842]
[1772268846769,0.001,1856.4,1856.0,1.99800604]
[1772268847180,0.001,1856.4,1856.0,1.99910604]
[1772268847484,0.001,1856.3,1856.0,1.99910604]
[1772268848666,1.98326028,1856.3,1856.0,0.0011]
[1772268851176,3.33003182,1856.3,1856.0,0.0011]
[1772268851578,0.001,1856.3,1856.0,0.0011]
[1772268851782,1.34777418,1856.3,1856.0,0.0011]
[1772268852165,0.001,1856.3,1856.0,0.0011]
[1772268861489,0.001,1856.3,1856.1,0.0011]
[1772268861801,0.001,1856.2,1856.1,0.0011]
[1772268864107,1.79850795,1856.2,1856.1,0.0011]
[1772268864802,0.001,1856.2,1856.1,0.0011]
[1772268865387,1.79850795,1856.2,1856.1,0.0011]
[1772268867295,1.79850795,1856.2,1856.0,0.0011]
[1772268867619,0.001,1856.2,1856.0,0.0011]
[1772268871022,1.79850795,1856.2,1856.0,0.0011]
[1772268871185,1.79750795,1855.9,1855.7,0.0011]
[1772268871381,1.79750795,1856.0,1855.7,0.0011]
[1772268873419,0.05381277,1856.1,1855.7,1.86560893]
[1772268873596,3.14535306,1856.2,1855.8,1.86450893]
[1772268873787,3.19916583,1856.2,1855.8,1.86450893]
[1772268873989,3.19916583,1856.2,1855.7,0.0011]
[1772268874190,1.85232072,1856.2,1855.7,1.86560893]
[1772268874590,3.19916824,1856.2,1855.7,1.86560893]
[1772268874803,1.79850795,1856.2,1855.7,1.86560893]
[1772268875302,0.001,1856.2,1855.8,3.21163685]
[1772268875886,0.001,1856.2,1855.8,1.86560893]
[1772268876188,1.79850795,1856.2,1855.8,0.0011]
[1772268876710,1.79850795,1856.2,1855.8,1.86560893]
[1772268876711,0.001,1856.2,1855.8,1.86560893]
[1772268877612,0.001,1856.2,1855.9,1.34705533]
[1772268878302,0.001,1856.2,1856.0,1.86450893]
[1772268879594,0.001,1856.2,1855.8,3.21268871]
[1772268880215,0.001,1856.2,1855.8,3.21272637]
[1772268881591,1.76325727,1856.2,1855.8,1.34821744]
[1772268881921,0.001,1856.2,1856.0,1.7538406]
[1772268882296,0.001,1856.2,1855.9,2.50948887]
[1772268883819,0.001,1856.2,1856.0,1.34698275]
[1772268884596,0.001,1856.2,1856.0,3.10082335]
[1772268886405,0.001,1856.2,1856.1,1.7538406]
[1772268886603,1.79438663,1856.2,1855.9,1.722]
[1772268887231,0.001,1856.2,1856.0,1.7538406]
[1772268887436,0.001,1856.2,1855.9,4.82288817]
[1772268888011,0.001,1856.1,1856.0,1.7538406]
[1772268888722,0.001,1856.1,1856.0,3.10082335]
[1772268892842,0.001,1856.3,1856.1,1.7538406]
[1772268893035,0.001,1856.3,1856.2,3.4848406]
[1772268898318,0.001,1856.3,1856.2,1.731]
[1772268899636,0.001,1856.3,1856.2,4.83167822]
[1772268900347,1.79338663,1857.4,1856.3,1.7538406]
[1772268900545,0.44286968,1857.5,1856.2,13.12564616]
[1772268900546,2.23625631,1857.5,1857.3,0.75564827]
[1772268900724,0.75564827,1858.1,1857.3,3.38248887]
[1772268900725,1.79338663,1857.7,1857.3,3.38248887]
[1772268900924,1.79338663,1857.7,1857.3,2.6268406]
[1772268901348,1.79338663,1857.6,1857.3,0.873]
[1772268901850,1.79338663,1857.5,1857.1,2.21918314]
[1772268902346,1.79338663,1857.4,1857.1,0.873]
[1772268902852,1.79338663,1857.4,1857.0,1.34621347]
[1772268903061,3.13922095,1857.6,1857.0,3.10005407]
[1772268903361,3.13921018,1857.6,1857.1,1.7538406]
[1772268903546,1.79338663,1857.5,1857.1,1.7538406]
[1772268903762,1.34582355,1857.6,1857.2,1.739]
[1772268903763,1.79338663,1857.6,1857.2,1.739]
[1772268903950,1.79338663,1857.8,1857.2,4.83894244]
[1772268904134,1.79338663,1857.7,1857.2,3.4928406]
[1772268904530,1.79338663,1857.7,1857.2,4.83894154]
[1772268905037,0.75564827,1857.8,1856.9,1.739]
[1772268905038,1.79338663,1857.3,1856.9,1.739]
[1772268905242,1.79338663,1857.3,1856.7,4.24848887]
[1772268905437,1.79338663,1857.3,1856.8,1.7538406]
[1772268905758,1.79338663,1857.3,1856.8,3.10019399]
[1772268906283,3.13943423,1857.3,1856.8,3.10019399]
[1772268906442,1.79338663,1857.2,1856.7,3.08545656]
[1772268906640,1.79338663,1857.2,1856.7,5.59494543]
[1772268907046,1.79338663,1857.4,1856.8,1.7538406]
[1772268907254,3.13935583,1857.4,1856.8,1.7538406]
[1772268907562,1.79338663,1857.3,1856.8,1.7538406]
[1772268907857,1.79338663,1857.3,1856.8,3.10021613]
[1772268908730,1.79338663,1857.3,1856.7,1.739]
[1772268908731,1.79338663,1857.1,1856.7,1.739]
[1772268909136,1.79338663,1857.1,1856.4,4.84050364]
[1772268910741,1.64925182,1857.5,1856.7,0.75564827]
[1772268910947,1.64925182,1857.8,1857.0,1.66793533]
[1772268911265,1.64925182,1857.5,1856.9,0.75564827]
[1772268911455,1.64925182,1857.5,1856.9,2.4235836]
[1772268912231,1.64925182,1857.5,1856.8,1.741]
[1772268912232,1.64925182,1857.7,1857.1,2.4235836]
[1772268912437,1.64925182,1857.7,1857.2,1.66793533]
[1772268912838,1.64925182,1857.7,1857.1,1.34618491]
[1772268913058,0.001,1857.4,1857.1,3.01412024]
[1772268915066,0.001,1857.4,1856.8,1.741]
[1772268915067,1.65025182,1857.4,1856.8,3.0874019]
[1772268917046,2.99625607,1857.4,1856.8,3.0874019]
[1772268917452,2.99622557,1857.4,1856.8,3.0874019]
[1772268919587,1.65025182,1857.4,1856.8,3.0874019]
[1772268919875,1.65025182,1857.4,1856.5,0.0011]
[1772268920047,1.64925182,1857.3,1856.6,8.79694504]
[1772268920879,1.64925182,1857.3,1856.6,1.743]
[1772268922372,1.64925182,1857.1,1856.6,1.743]
[1772268922873,1.64925182,1857.1,1856.5,0.0011]
[1772268923566,1.64925182,1857.1,1856.5,1.34770822]
[1772268923876,1.64925182,1857.1,1856.5,0.0011]
[1772268924571,2.99550922,1857.0,1856.5,0.0011]
[1772268925352,1.64925182,1856.9,1856.5,0.0011]
[1772268925775,1.64925182,1856.9,1856.7,0.0011]
[1772268927458,2.99563408,1856.9,1856.7,0.0011]
[1772268928381,1.64925182,1856.8,1856.2,0.0011]
[1772268928580,1.64925182,1856.8,1856.2,1.34791104]
[1772268928755,1.64925182,1856.8,1856.2,3.01584637]
[1772268929586,2.99572674,1856.7,1856.2,3.01584637]
[1772268930058,2.99572674,1856.7,1856.2,1.34791104]
[1772268930059,1.64925182,1856.6,1856.2,1.34791104]
[1772268932003,1.64925182,1856.6,1856.2,0.0011]
[1772268932158,2.99580638,1856.6,1856.2,0.0011]
[1772268932491,1.64925182,1856.6,1856.2,0.0011]
[1772268933204,1.64925182,1856.6,1856.2,1.66903533]
[1772268933511,1.64925182,1856.5,1856.2,0.0011]
[1772268935679,2.99587466,1856.5,1856.2,0.0011]
[1772268936213,1.64925182,1856.4,1856.2,0.0011]
[1772268937214,1.34662284,1856.5,1856.0,4.14912067]
[1772268937215,1.64925182,1856.5,1856.0,4.14912067]
[1772268937581,1.65025182,1856.5,1856.0,2.80214716]
[1772268938598,1.65025182,1856.5,1856.1,1.66793533]
[1772268938914,0.001,1856.5,1856.2,1.66793533]
[1772268939083,0.001,1856.5,1856.0,4.14912112]
[1772268939285,0.001,1856.5,1856.1,1.66793533]
[1772268940144,0.001,1856.5,1856.3,1.66793533]
[1772268941334,0.001,1856.5,1856.2,2.47988808]
[1772268941826,0.001,1856.5,1856.2,4.07430592]
[1772268943895,0.001,1856.5,1856.2,4.022286]
[1772268947908,0.001,1856.5,1856.3,1.54239792]
[1772268948442,0.001,1856.5,1856.2,2.47988808]
[1772268948638,0.001,1856.5,1856.3,1.54239792]
[1772268949225,0.001,1856.5,1856.3,1.54349792]
[1772268950632,0.001,1856.5,1856.3,2.89025096]
[1772268951439,1.64429445,1856.9,1856.5,1.54239792]
[1772268951736,2.99036998,1857.3,1856.7,1.54239792]
[1772268951913,1.64429445,1857.3,1856.8,1.54239792]
[1772268952110,1.64429445,1857.3,1856.8,2.67550975]
[1772268952517,1.64429445,1857.3,1856.8,4.02186663]
[1772268953209,1.64429445,1857.3,1856.8,1.54239792]
[1772268953413,1.64429445,1857.3,1856.3,0.0011]
[1772268953414,1.64429445,1856.8,1856.3,1.54349792]
[1772268953639,1.64429445,1856.8,1856.4,1.54239792]
[1772268953835,1.64429445,1857.0,1856.4,1.54239792]
[1772268954718,1.64429445,1856.9,1856.4,2.88903512]
[1772268954919,1.64429445,1856.9,1856.5,1.54239792]
[1772268955246,1.64429445,1856.9,1856.5,2.67550975]
[1772268956130,1.64429445,1857.1,1856.5,2.67550975]
[1772268956333,1.64429445,1857.1,1856.6,1.54239792]
[1772268957643,1.64429445,1857.1,1856.6,2.88888803]
[1772268958978,1.64429445,1857.0,1856.6,2.88888803]
[1772268960276,3.8,1857.3,1857.0,1.54239792]
[1772268960442,5.44529445,1857.4,1857.0,1.54239792]
[1772268961772,5.44529445,1857.4,1857.0,2.88865029]
[1772268963375,1.64529445,1857.4,1857.0,2.88865029]
[1772268965194,0.001,1857.4,1857.1,2.67550975]
[1772268965677,1.64529445,1857.4,1857.1,1.13311183]
[1772268966579,1.64529445,1857.4,1857.1,2.47925298]
[1772268966787,0.001,1857.4,1857.1,4.0216509]
[1772268968065,5.44429445,1857.8,1857.3,2.67550975]
[1772268969090,5.44429445,1857.8,1857.4,1.34596748]
[1772268969556,5.44429445,1857.8,1857.3,2.88838351]
[1772268969761,1.64429445,1857.9,1857.4,2.67550975]
[1772268971160,1.64429445,1857.9,1857.5,1.34589502]
[1772268973191,0.001,1857.8,1857.5,1.34589502]
[1772268974925,0.001,1857.8,1857.6,1.52462926]
[1772268975112,0.001,1857.8,1857.4,4.00365714]
[1772268975421,1.45353007,1857.8,1857.4,4.00365714]
[1772268975787,10.31440389,1858.3,1857.4,4.00365714]
[1772268975788,1.45253007,1858.3,1857.5,1.52462926]
[1772268975988,1.45253007,1858.1,1857.3,4.42374109]
[1772268976525,1.45253007,1858.1,1857.4,1.52462926]
[1772268977317,1.45253007,1857.9,1857.4,3.62497164]
[1772268978513,1.45253007,1857.9,1857.4,2.27902433]
[1772268979719,1.45253007,1857.7,1857.0,3.62522421]
[1772268979921,1.45253007,1857.5,1857.0,3.62527808]
[1772268981003,1.45253007,1857.5,1857.0,2.27902433]
[1772268981320,1.45253007,1857.5,1857.0,3.62527311]
[1772268981617,1.34596748,1857.4,1856.8,3.62538991]
[1772268981818,1.45253007,1857.3,1856.8,3.62542407]
[1772268982995,1.45253007,1857.3,1856.8,1.52462926]
[1772268983198,1.45253007,1857.3,1856.8,2.87102358]
[1772268983620,1.45253007,1857.3,1856.9,1.52462926]
[1772268983794,2.79857706,1857.3,1856.9,2.27902433]
[1772268984118,1.45253007,1857.2,1856.7,0.75439507]
[1772268984319,1.45253007,1857.2,1856.6,0.0011]
[1772268984320,1.45253007,1857.1,1856.6,0.0011]
[1772268985795,1.50879014,1856.7,1855.0,0.0011]
[1772268985999,0.33840334,1857.0,1854.2,4.08746177]
[1772268986000,1.45253007,1855.1,1854.2,4.08746177]
[1772268986296,5.54081165,1855.0,1854.2,2.27902433]
[1772268986500,4.78641658,1855.0,1854.6,0.0033]
[1772268986908,0.0033,1854.6,1854.0,1.52572926]
[1772268987224,2.17135236,1854.6,1854.0,1.52572926]
[1772268987926,1.34799956,1854.6,1854.1,0.0033]
[1772268988124,4.71877766,1854.6,1854.1,0.0033]
[1772268988426,3.13699956,1854.6,1854.0,0.0011]
[1772268988612,4.58952963,1854.6,1854.0,0.0011]
[1772268990330,1.45253007,1854.5,1854.0,0.0011]
[1772268992216,1.34799956,1854.6,1854.0,1.52572926]
[1772268992417,1.45253007,1855.0,1854.3,1.52462926]
[1772268992620,1.45253007,1855.0,1854.1,1.52462926]
[1772268993412,3.1385636,1855.2,1854.1,1.52462926]
[1772268993413,1.3475636,1855.2,1854.1,1.52462926]
[1772268993611,2.80009367,1855.2,1854.4,1.52462926]
[1772268993812,7.26731085,1855.3,1854.6,1.52462926]
[1772268994023,1.34730859,1855.6,1854.8,1.52462926]
[1772268994415,2.79983866,1855.6,1854.8,2.87246862]
[1772268995623,1.34725622,1855.7,1854.9,1.52462926]
[1772268996048,5.81873834,1855.9,1855.0,1.52462926]
[1772268996247,7.16582298,1855.9,1855.0,1.52462926]
[1772268996773,1.791,1856.2,1855.4,3.78578516]
[1772268996946,3.24353007,1856.2,1855.2,5.31041442]
[1772268997144,3.13669252,1856.4,1855.5,1.52462926]
[1772268997573,4.58922259,1856.4,1855.5,1.52462926]
[1772268998451,0.001,1855.8,1855.5,1.52462926]
[1772268998982,0.001,1855.8,1855.5,2.87191809]
[1772269000371,0.001,1855.8,1855.5,1.34728883]
[1772269000566,0.001,1855.8,1855.3,2.75982137]
[1772269001160,0.001,1855.8,1855.3,1.34745056]
[1772269001362,0.001,1855.8,1855.4,1.41237081]
[1772269001989,2.84184369,1856.2,1855.5,1.41880399]
[1772269003508,1.38595777,1856.1,1855.3,2.76629496]
[1772269003682,1.38595777,1855.7,1854.7,2.7667301]
[1772269003852,1.38595777,1855.7,1854.6,1.763]
[1772269003853,1.38595777,1855.5,1854.6,3.11099266]
[1772269004698,1.38595777,1855.5,1854.5,1.41880399]
[1772269004699,1.38595777,1855.4,1854.5,1.41880399]
[1772269004887,1.38595777,1855.4,1854.4,5.20458915]
[1772269005082,1.38595777,1855.4,1854.6,5.20458915]
[1772269005310,1.34749097,1855.3,1854.7,1.34792688]
[1772269007885,2.7334233,1855.4,1854.7,1.34792688]
[1772269008088,2.73315828,1855.7,1854.9,1.41880399]
[1772269008305,1.38595777,1855.6,1854.9,1.41880399]
[1772269009428,5.22378941,1855.8,1855.1,1.41880399]
[1772269009627,2.73313859,1855.8,1855.1,1.41880399]
[1772269009929,0.001,1855.3,1855.1,1.41880399]
[1772269010127,0.001,1855.3,1854.9,1.34772455]
[1772269010999,0.001,1855.3,1854.9,2.76652854]
[1772269011226,0.001,1855.3,1855.0,1.41880399]
[1772269011641,0.001,1855.3,1855.1,1.34763624]
[1772269011936,1.34718082,1855.8,1855.1,2.76644023]
[1772269012140,2.73313859,1855.8,1855.1,2.76644023]
[1772269012845,1.38595777,1855.7,1854.9,1.34773346]
[1772269013345,2.73305065,1855.9,1855.1,1.41880399]
[1772269014322,2.73305065,1855.9,1855.2,1.3475636]
[1772269014741,6.53305065,1855.9,1855.2,1.3475636]
[1772269015847,8.31505065,1855.9,1855.2,1.3475636]
[1772269016511,1.38595777,1855.8,1855.1,2.76638257]
[1772269018540,2.73315828,1855.7,1855.1,2.76638257]
[1772269020386,1.38595777,1856.0,1855.3,1.34749097]
[1772269020545,3.16895777,1855.9,1855.3,2.76629496]
[1772269020746,3.16895777,1855.9,1855.3,1.41880399]
[1772269021061,1.38595777,1855.8,1855.2,1.34750822]
[1772269021693,1.38595777,1855.8,1855.0,1.34770282]
[1772269022287,1.38695777,1855.7,1855.0,1.34770282]
[1772269022505,1.34727311,1855.6,1854.9,1.41880399]
[1772269022671,1.38595777,1855.5,1854.8,1.2911]
[1772269022856,1.38595777,1855.5,1854.8,4.05775591]
[1772269023189,1.38595777,1855.5,1854.8,2.70990399]
[1772269023593,1.38595777,1855.4,1854.8,4.05774575]
[1772269023771,3.16795777,1855.4,1854.8,1.2911]
[1772269024106,1.38595777,1855.3,1854.8,1.2911]
[1772269024463,1.38595777,1855.2,1854.7,0.0011]
[1772269024764,1.38595777,1855.0,1854.7,0.0011]
[1772269025466,1.38595777,1854.8,1854.7,0.0011]
[1772269025975,1.783,1854.9,1854.7,0.0011]
[1772269026722,3.13081306,1854.9,1854.7,0.0011]
[1772269027085,1.34781306,1854.9,1854.7,0.0011]
[1772269027283,1.38595777,1854.8,1854.5,0.0011]
[1772269028109,3.17095777,1854.7,1854.5,0.0011]
[1772269028476,5.14781306,1854.9,1854.5,0.0011]
[1772269028477,6.53377083,1854.9,1854.6,0.0011]
[1772269028681,1.34792688,1854.7,1854.5,0.0022]
[1772269030311,1.34791162,1854.8,1854.5,0.0022]
[1772269030502,3.13591162,1854.8,1854.6,0.0011]
[1772269031104,1.37475554,1854.7,1854.5,0.0011]
[1772269032215,1.37475554,1854.7,1854.1,2.74882254]
[1772269033212,1.37475554,1854.7,1854.1,1.40047535]
[1772269033414,1.37475554,1854.5,1854.0,0.0011]